fUST/lending_fUST_20250204
["ID","MTS","AMOUNT","RATE_DAILY","PERIOD"]
[351499004,1738603847364,-406.9954388,0.00016575,2]
[351499006,1738603847374,-500.0,0.00016575,2]
[351499008,1738603847384,-526.49335448,0.00016575,2]
[351499010,1738603847394,-507.83850901,0.00016575,2]
[351499012,1738603847403,-600.99085291,0.00016575,2]
[351499014,1738603847414,-500.0,0.00016575,2]
[351499016,1738603847423,-500.0,0.00016575,2]
[351499018,1738603847434,-5519.73,0.00016575,2]
[351499020,1738603847444,-425.57329149,0.00016575,2]
[351499022,1738603847453,-500.0,0.00016575,2]
[351499025,1738603847464,-500.0,0.00016575,2]
[351499027,1738603847474,-500.0,0.00016575,2]
[351499029,1738603847484,-585.67,0.00016575,2]
[351499031,1738603847494,-500.0,0.00016575,2]
[351499033,1738603847504,-151.0,0.00016575,2]
[351499035,1738603847514,-452.7874046,0.00016575,2]
[351499037,1738603847524,-500.0,0.00016575,2]
[351499039,1738603847538,-500.0,0.00016575,2]
[351499041,1738603847548,-500.0,0.00016575,2]
[351499043,1738603847557,-1271.01,0.00016575,2]
[351499045,1738603847567,-453.94,0.00016575,2]
[351499047,1738603847577,-983.07,0.00016575,2]
[351499049,1738603847587,-585.06,0.00016575,2]
[351499051,1738603847598,-500.0,0.00016575,2]
[351499053,1738603847608,-500.0,0.00016575,2]
[351499055,1738603847617,-257.17410142,0.00016575,2]
[351499057,1738603847627,-500.0,0.00016575,2]
[351499059,1738603847637,-1073.27,0.00016575,2]
[351499061,1738603847647,-500.0,0.00016575,2]
[351499063,1738603847657,-500.0,0.00016575,2]
[351499065,1738603847667,-500.0,0.00016575,2]
[351499067,1738603847676,-151.0,0.00016575,2]
[351499069,1738603847686,-625.96,0.00016575,2]
[351499071,1738603847696,-912.41,0.00016575,2]
[351499074,1738603847705,-500.0,0.00016575,2]
[351499076,1738603847715,-2629.62,0.00016575,2]
[351499078,1738603847725,-500.0,0.00016575,2]
[351499080,1738603847734,-198.30286316,0.00016604,2]
[351499082,1738603847744,-3555.6580607,0.00016662,2]
[351499084,1738603847753,-500.0,0.00016712,2]
[351499086,1738603847763,-500.0,0.00016712,2]
[351499088,1738603847772,-500.0,0.00016712,2]
[351499090,1738603847785,-500.0,0.00016712,2]
[351499092,1738603847795,-500.0,0.00016712,2]
[351499094,1738603847805,-500.0,0.00016712,2]
[351499096,1738603847816,-188.01083267,0.00016712,2]
[351499098,1738603847827,-500.0,0.00016712,2]
[351499100,1738603847838,-500.0,0.00016712,2]
[351499102,1738603847848,-500.0,0.00016712,2]
[351499104,1738603847859,-500.0,0.00016712,2]
[351499106,1738603847869,-500.0,0.00016712,2]
[351499108,1738603847879,-500.0,0.00016712,2]
[351499110,1738603847889,-500.0,0.00016712,2]
[351499112,1738603847900,-500.0,0.00016712,2]
[351499114,1738603847910,-500.0,0.00016712,2]
[351499117,1738603847920,-169.08381245,0.00016712,2]
[351499119,1738603847930,-500.0,0.00016712,2]
[351499121,1738603847939,-500.0,0.00016712,2]
[351499123,1738603847949,-618.21,0.00016712,2]
[351499125,1738603847960,-500.0,0.00016712,2]
[351499127,1738603847971,-500.0,0.00016712,2]
[351499129,1738603847981,-500.0,0.00016712,2]
[351499131,1738603847991,-500.0,0.00016712,2]
[351499133,1738603848001,-500.0,0.00016712,2]
[351499135,1738603848012,-500.0,0.00016712,2]
[351499137,1738603848022,-500.0,0.00016712,2]
[351499139,1738603848034,-500.0,0.00016712,2]
[351499141,1738603848045,-500.0,0.00016712,2]
[351499143,1738603848055,-500.0,0.00016712,2]
[351499145,1738603848067,-500.0,0.00016712,2]
[351499147,1738603848077,-500.0,0.00016712,2]
[351499149,1738603848087,-500.0,0.00016712,2]
[351499151,1738603848097,-500.0,0.00016712,2]
[351499153,1738603848108,-500.0,0.00016712,2]
[351499155,1738603848119,-500.0,0.00016712,2]
[351499157,1738603848129,-500.0,0.00016712,2]
[351499159,1738603848139,-2953.08,0.00016712,2]
[351499161,1738603848149,-151.0,0.00016712,2]
[351499163,1738603848161,-1352.98,0.00016712,2]
[351499165,1738603848171,-500.0,0.00016712,2]
[351499167,1738603848182,-500.0,0.00016712,2]
[351499169,1738603848192,-500.0,0.00016712,2]
[351499171,1738603848203,-1506.91,0.00016712,2]
[351499173,1738603848213,-3919.91,0.00016712,2]
[351499175,1738603848223,-782.83,0.00016712,2]
[351499177,1738603848233,-500.0,0.00016712,2]
[351499179,1738603848243,-500.0,0.00016712,2]
[351499182,1738603848253,-151.0,0.00016712,2]
[351499184,1738603848262,-1094.85,0.00016712,2]
[351499185,1738603848272,-500.0,0.00016712,2]
[351499188,1738603848283,-2350.89,0.00016712,2]
[351499190,1738603848292,-10834.67,0.00016712,2]
[351499192,1738603848302,-500.0,0.00016712,2]
[351499193,1738603848312,-622.99,0.00016712,2]
[351499196,1738603848323,-553.72,0.00016712,2]
[351499198,1738603848333,-634.41,0.00016712,2]
[351499200,1738603848343,-1714.68,0.00016712,2]
[351499202,1738603848353,-500.0,0.00016712,2]
[351499204,1738603848363,-151.0,0.00016712,2]
[351499206,1738603848373,-151.0,0.00016712,2]
[351499208,1738603848383,-151.0,0.00016712,2]
[351499210,1738603848393,-151.0,0.00016712,2]
[351499212,1738603848402,-500.0,0.00016712,2]
[351499214,1738603848412,-1086.52,0.00016712,2]
[351499216,1738603848422,-500.0,0.00016712,2]
[351499218,1738603848432,-565.13,0.00016712,2]
[351499220,1738603848442,-500.0,0.00016712,2]
[351499222,1738603848452,-4922.91,0.00016712,2]
[351499224,1738603848463,-500.0,0.00016712,2]
[351499226,1738603848473,-500.0,0.00016712,2]
[351499228,1738603848483,-5519.73,0.00016712,2]
[351499230,1738603848492,-500.0,0.00016712,2]
[351499232,1738603848503,-585.67,0.00016712,2]
[351499234,1738603848513,-500.0,0.00016712,2]
[351499236,1738603848525,-500.0,0.00016712,2]
[351499238,1738603848540,-500.0,0.00016712,2]
[351499240,1738603848551,-1271.01,0.00016712,2]
[351499242,1738603848562,-983.07,0.00016712,2]
[351499244,1738603848572,-585.06,0.00016712,2]
[351499246,1738603848581,-151.0,0.00016712,2]
[351499248,1738603848592,-500.0,0.00016712,2]
[351499250,1738603848602,-500.0,0.00016712,2]
[351499252,1738603848613,-1073.27,0.00016712,2]
[351499254,1738603848623,-174.602072,0.00016712,2]
[351499256,1738603848634,-518.3994892,0.00016712,2]
[351499258,1738603848646,-500.0,0.00016712,2]
[351499260,1738603848657,-625.96,0.00016712,2]
[351499262,1738603848667,-912.41,0.00016712,2]
[351499264,1738603848677,-151.0,0.00016712,2]
[351499266,1738603848687,-500.0,0.00016712,2]
[351499268,1738603848698,-2629.62,0.00016712,2]
[351499270,1738603848709,-151.0,0.00016848,2]
[351499272,1738603848719,-151.0,0.00016848,2]
[351499274,1738603848730,-223.77122,0.00016848,2]
[351499276,1738603848740,-223.77122,0.00016848,2]
[351499278,1738603848750,-500.0,0.00016849,2]
[351499280,1738603848760,-500.0,0.00016849,2]
[351499282,1738603848770,-500.0,0.00016849,2]
[351499284,1738603848780,-500.0,0.00016849,2]
[351499286,1738603848793,-500.0,0.00016849,2]
[351499288,1738603848803,-500.0,0.00016849,2]
[351499290,1738603848813,-618.21,0.00016849,2]
[351499292,1738603848823,-151.000002,0.00016849,2]
[351499294,1738603848834,-547.68,0.00016849,2]
[351499296,1738603848844,-500.0,0.00016849,2]
[351499298,1738603848855,-500.0,0.00016849,2]
[351499300,1738603848866,-500.0,0.00016849,2]
[351499303,1738603848878,-500.0,0.00016849,2]
[351499305,1738603848888,-500.0,0.00016849,2]
[351499307,1738603848898,-500.0,0.00016849,2]
[351499309,1738603848909,-500.0,0.00016849,2]
[351499311,1738603848920,-500.0,0.00016849,2]
[351499313,1738603848930,-500.0,0.00016849,2]
[351499315,1738603848939,-500.0,0.00016849,2]
[351499328,1738603848949,-500.0,0.00016849,2]
[351499330,1738603849063,-500.0,0.00016849,2]
[351499332,1738603849074,-500.0,0.00016849,2]
[351499334,1738603849082,-500.0,0.00016849,2]
[351499336,1738603849090,-637.810151,0.00016849,2]
[351499339,1738603849099,-637.810151,0.00016849,2]
[351499340,1738603849107,-2953.08,0.00016849,2]
[351499342,1738603849115,-1352.98,0.00016849,2]
[351499344,1738603849123,-500.0,0.00016849,2]
[351499346,1738603849131,-500.0,0.00016849,2]
[351499348,1738603849140,-500.0,0.00016849,2]
[351499350,1738603849150,-1506.91,0.00016849,2]
[351499352,1738603849159,-3919.91,0.00016849,2]
[351499354,1738603849170,-782.83,0.00016849,2]
[351499356,1738603849179,-500.0,0.00016849,2]
[351499358,1738603849189,-500.0,0.00016849,2]
[351499360,1738603849198,-1094.85,0.00016849,2]
[351499362,1738603849208,-500.0,0.00016849,2]
[351499364,1738603849217,-2350.89,0.00016849,2]
[351499366,1738603849227,-10834.67,0.00016849,2]
[351499368,1738603849236,-500.0,0.00016849,2]
[351499370,1738603849246,-622.99,0.00016849,2]
[351499372,1738603849255,-553.72,0.00016849,2]
[351499374,1738603849265,-634.41,0.00016849,2]
[351499376,1738603849275,-1714.68,0.00016849,2]
[351499378,1738603849288,-500.0,0.00016849,2]
[351499380,1738603849299,-500.0,0.00016849,2]
[351499382,1738603849309,-1086.52,0.00016849,2]
[351499384,1738603849319,-500.0,0.00016849,2]
[351499386,1738603849329,-500.0,0.00016849,2]
[351499388,1738603849339,-565.13,0.00016849,2]
[351499390,1738603849349,-4922.91,0.00016849,2]
[351499392,1738603849359,-500.0,0.00016849,2]
[351499394,1738603849369,-500.0,0.00016849,2]
[351499396,1738603849378,-5519.73,0.00016849,2]
[351499397,1738603849388,-524.96188372,0.00016849,2]
[351499399,1738603849397,-585.67,0.00016849,2]
[351499401,1738603849407,-500.0,0.00016849,2]
[351499403,1738603849416,-500.0,0.00016849,2]
[351499405,1738603849425,-500.0,0.00016849,2]
[351499407,1738603849435,-1271.01,0.00016849,2]
[351499409,1738603849444,-983.07,0.00016849,2]
[351499411,1738603849453,-585.06,0.00016849,2]
[351499413,1738603849463,-500.0,0.00016849,2]
[351499415,1738603849472,-500.0,0.00016849,2]
[351499417,1738603849481,-1073.27,0.00016849,2]
[351499419,1738603849491,-204.20638549,0.00016849,2]
[351499421,1738603849500,-625.96,0.00016849,2]
[351499423,1738603849509,-912.41,0.00016849,2]
[351499425,1738603849519,-500.0,0.00016849,2]
[351499427,1738603849527,-2629.62,0.00016849,2]
[351499429,1738603849539,-151.0,0.00016854,2]
[351499431,1738603849548,-3420.25232428,0.00016854,2]
[351499433,1738603849557,-198.30286316,0.00016869,2]
[351499434,1738603849566,-420.0,0.00016869,2]
[351499435,1738603849575,-154.0812575,0.00016877,2]
[351499436,1738603849585,-1473.57147293,0.00016886,2]
[351499437,1738603849594,-537.0,0.00016949,2]
[351499438,1738603849603,-1994.0,0.00016949,2]
[351499439,1738603849613,-2299.0,0.00016949,2]
[351499440,1738603849622,-396.0,0.00016949,2]
[351499441,1738603849632,-153.0,0.00016969,2]
[351499442,1738603849641,-153.0,0.00016969,2]
[351499443,1738603849650,-153.0,0.00016969,2]
[351499444,1738603849659,-151.0,0.00016985,2]
[351499445,1738603849668,-151.0,0.00016985,2]
[351499446,1738603849677,-500.0,0.00016986,2]
[351499447,1738603849687,-500.0,0.00016986,2]
[351499448,1738603849696,-500.0,0.00016986,2]
[351499449,1738603849705,-500.0,0.00016986,2]
[351499450,1738603849714,-151.0,0.00016986,2]
[351499451,1738603849724,-500.0,0.00016986,2]
[351499452,1738603849734,-500.0,0.00016986,2]
[351499453,1738603849743,-151.0,0.00016986,2]
[351499454,1738603849752,-151.0,0.00016986,2]
[351499455,1738603849763,-618.21,0.00016986,2]
[351499456,1738603849772,-151.0,0.00016986,2]
[351499457,1738603849781,-163.708846,0.00016986,2]
[351499458,1738603849794,-151.0,0.00016986,2]
[351499459,1738603849804,-500.0,0.00016986,2]
[351499460,1738603849813,-500.0,0.00016986,2]
[351499461,1738603849823,-500.0,0.00016986,2]
[351499462,1738603849833,-500.0,0.00016986,2]
[351499463,1738603849843,-230.38198853,0.00016986,2]
[351499464,1738603849852,-500.0,0.00016986,2]
[351499465,1738603849861,-500.0,0.00016986,2]
[351499466,1738603849871,-500.0,0.00016986,2]
[351499467,1738603849880,-500.0,0.00016986,2]
[351499468,1738603849889,-500.0,0.00016986,2]
[351499469,1738603849899,-500.0,0.00016986,2]
[351499470,1738603849908,-500.0,0.00016986,2]
[351499471,1738603849917,-500.0,0.00016986,2]
[351499472,1738603849927,-151.0,0.00016986,2]
[351499473,1738603849936,-500.0,0.00016986,2]
[351499474,1738603849945,-2953.08,0.00016986,2]
[351499475,1738603849955,-151.0,0.00016986,2]
[351499476,1738603849967,-1352.98,0.00016986,2]
[351499477,1738603849976,-500.0,0.00016986,2]
[351499478,1738603849985,-500.0,0.00016986,2]
[351499479,1738603849994,-500.0,0.00016986,2]
[351499480,1738603850004,-1506.91,0.00016986,2]
[351499481,1738603850013,-223.77122,0.00016986,2]
[351499482,1738603850022,-223.77122,0.00016986,2]
[351499483,1738603850031,-3919.91,0.00016986,2]
[351499484,1738603850045,-782.83,0.00016986,2]
[351499485,1738603850054,-500.0,0.00016986,2]
[351499486,1738603850063,-500.0,0.00016986,2]
[351499487,1738603850073,-151.0,0.00016986,2]
[351499488,1738603850082,-1094.85,0.00016986,2]
[351499489,1738603850091,-2350.89,0.00016986,2]
[351499490,1738603850101,-10834.67,0.00016986,2]
[351499491,1738603850111,-500.0,0.00016986,2]
[351499492,1738603850120,-622.99,0.00016986,2]
[351499493,1738603850131,-553.72,0.00016986,2]
[351499494,1738603850140,-634.41,0.00016986,2]
[351499495,1738603850149,-1714.68,0.00016986,2]
[351499496,1738603850158,-500.0,0.00016986,2]
[351499497,1738603850167,-151.0,0.00016986,2]
[351499498,1738603850176,-158.564945,0.00016986,2]
[351499499,1738603850186,-151.0,0.00016986,2]
[351499500,1738603850195,-500.0,0.00016986,2]
[351499501,1738603850205,-1086.52,0.00016986,2]
[351499502,1738603850215,-500.0,0.00016986,2]
[351499503,1738603850224,-500.0,0.00016986,2]
[351499504,1738603850234,-565.13,0.00016986,2]
[351499505,1738603850243,-4922.91,0.00016986,2]
[351499506,1738603850252,-500.0,0.00016986,2]
[351499507,1738603850261,-500.0,0.00016986,2]
[351499508,1738603850270,-5519.73,0.00016986,2]
[351499509,1738603850280,-585.67,0.00016986,2]
[351499510,1738603850290,-500.0,0.00016986,2]
[351499511,1738603850300,-500.0,0.00016986,2]
[351499512,1738603850309,-360.48880995,0.00016986,2]
[351499515,1738603850465,-139.51119005,0.00016986,2]
[351499516,1738603850475,-1271.01,0.00016986,2]
[351499517,1738603850484,-983.07,0.00016986,2]
[351499519,1738603850494,-585.06,0.00016986,2]
[351499520,1738603850504,-151.0,0.00016986,2]
[351499522,1738603850514,-500.0,0.00016986,2]
[351499523,1738603850524,-500.0,0.00016986,2]
[351499525,1738603850537,-1073.27,0.00016986,2]
[351499526,1738603850548,-625.96,0.00016986,2]
[351499527,1738603850558,-912.41,0.00016986,2]
[351499528,1738603850567,-500.0,0.00016986,2]
[351499530,1738603850577,-2629.62,0.00016986,2]
[351499532,1738603850587,-546.781,0.00017,2]
[351499534,1738603850598,-187.745,0.00017,2]
[351499536,1738603850607,-3248.30922567,0.00017,2]
[351499537,1738603850616,-637.810151,0.00017004,2]
[351499538,1738603850625,-637.810151,0.00017004,2]
[351499539,1738603850635,-1000.0,0.00017021,2]
[351499541,1738603850645,-1009.69412624,0.00017021,2]
[351499542,1738603850654,-12735.68972164,0.00017041,2]
[351499544,1738603850664,-500.0,0.00017123,2]
[351499545,1738603850673,-500.0,0.00017123,2]
[351499547,1738603850683,-151.0,0.00017123,2]
[351499548,1738603850692,-500.0,0.00017123,2]
[351499549,1738603850702,-428.68093322,0.00017123,2]
[351499550,1738603850711,-618.21,0.00017123,2]
[351499551,1738603850721,-500.0,0.00017123,2]
[351499552,1738603850730,-500.0,0.00017123,2]
[351499553,1738603850740,-500.0,0.00017123,2]
[351499554,1738603850749,-500.0,0.00017123,2]
[351499555,1738603850758,-500.0,0.00017123,2]
[351499556,1738603850767,-500.0,0.00017123,2]
[351499557,1738603850778,-500.0,0.00017123,2]
[351499558,1738603850791,-500.0,0.00017123,2]
[351499559,1738603850801,-500.0,0.00017123,2]
[351499560,1738603850811,-500.0,0.00017123,2]
[351499561,1738603850821,-500.0,0.00017123,2]
[351499562,1738603850832,-2953.08,0.00017123,2]
[351499563,1738603850842,-1352.98,0.00017123,2]
[351499564,1738603850851,-500.0,0.00017123,2]
[351499565,1738603850861,-500.0,0.00017123,2]
[351499566,1738603850872,-1506.91,0.00017123,2]
[351499567,1738603850882,-3919.91,0.00017123,2]
[351499568,1738603850891,-782.83,0.00017123,2]
[351499569,1738603850901,-500.0,0.00017123,2]
[351499570,1738603850911,-500.0,0.00017123,2]
[351499571,1738603850920,-1094.85,0.00017123,2]
[351499572,1738603850930,-2350.89,0.00017123,2]
[351499573,1738603850939,-10834.67,0.00017123,2]
[351499574,1738603850949,-500.0,0.00017123,2]
[351499575,1738603850959,-622.99,0.00017123,2]
[351499576,1738603850970,-553.72,0.00017123,2]
[351499577,1738603850980,-634.41,0.00017123,2]
[351499578,1738603850994,-1714.68,0.00017123,2]
[351499579,1738603851004,-500.0,0.00017123,2]
[351499580,1738603851015,-500.0,0.00017123,2]
[351499581,1738603851026,-1086.52,0.00017123,2]
[351499582,1738603851038,-500.0,0.00017123,2]
[351499583,1738603851048,-500.0,0.00017123,2]
[351499584,1738603851059,-383.7622631,0.00017123,2]
[351499585,1738603851072,-181.3677369,0.00017123,2]
[351499586,1738603851082,-4922.91,0.00017123,2]
[351499587,1738603851092,-500.0,0.00017123,2]
[351499588,1738603851102,-500.0,0.00017123,2]
[351499589,1738603851112,-4673.5938649,0.00017123,2]
[351499590,1738603851147,-846.1361351,0.00017123,2]
[351499591,1738603851158,-585.67,0.00017123,2]
[351499592,1738603851168,-500.0,0.00017123,2]
[351499593,1738603851178,-500.0,0.00017123,2]
[351499594,1738603851188,-500.0,0.00017123,2]
[351499595,1738603851198,-1271.01,0.00017123,2]
[351499596,1738603851208,-983.07,0.00017123,2]
[351499597,1738603851218,-585.06,0.00017123,2]
[351499598,1738603851227,-500.0,0.00017123,2]
[351499599,1738603851237,-500.0,0.00017123,2]
[351499600,1738603851247,-1073.27,0.00017123,2]
[351499601,1738603851257,-625.96,0.00017123,2]
[351499602,1738603851267,-912.41,0.00017123,2]
[351499603,1738603851277,-500.0,0.00017123,2]
[351499604,1738603851287,-2629.62,0.00017123,2]
[351499605,1738603851303,-198.30286316,0.00017135,2]
[351499606,1738603851312,-1000.0,0.00017255,2]
[351499607,1738603851321,-500.0,0.0001726,2]
[351499608,1738603851331,-500.0,0.0001726,2]
[351499609,1738603851341,-151.0,0.0001726,2]
[351499610,1738603851350,-151.0,0.0001726,2]
[351499611,1738603851359,-151.0,0.0001726,2]
[351499612,1738603851368,-618.21,0.0001726,2]
[351499613,1738603851378,-151.0,0.0001726,2]
[351499614,1738603851387,-151.0,0.0001726,2]
[351499620,1738603851500,-500.0,0.0001726,2]
[351499621,1738603851511,-273.57025744,0.0001726,2]
[351499623,1738603851521,-500.0,0.0001726,2]
[351499624,1738603851530,-500.0,0.0001726,2]
[351499625,1738603851542,-500.0,0.0001726,2]
[351499626,1738603851552,-500.0,0.0001726,2]
[351499627,1738603851561,-500.0,0.0001726,2]
[351499628,1738603851571,-500.0,0.0001726,2]
[351499629,1738603851580,-500.0,0.0001726,2]
[351499630,1738603851590,-500.0,0.0001726,2]
[351499631,1738603851600,-151.0,0.0001726,2]
[351499632,1738603851609,-55.25016568,0.0001726,2]
[351499633,1738603851622,-444.74983432,0.0001726,2]
[351499634,1738603851631,-502.52863168,0.0001726,2]
[351499635,1738603851643,-2450.55136832,0.0001726,2]
[351499636,1738603851652,-151.0,0.0001726,2]
[351499637,1738603851663,-1352.98,0.0001726,2]
[351499638,1738603851672,-500.0,0.0001726,2]
[351499639,1738603851681,-500.0,0.0001726,2]
[351499640,1738603851691,-1506.91,0.0001726,2]
[351499641,1738603851700,-223.77122,0.0001726,2]
[351499642,1738603851710,-223.77122,0.0001726,2]
[351499643,1738603851720,-3919.91,0.0001726,2]
[351499644,1738603851730,-782.83,0.0001726,2]
[351499645,1738603851739,-500.0,0.0001726,2]
[351499646,1738603851749,-500.0,0.0001726,2]
[351499647,1738603851758,-178.866714,0.0001726,2]
[351499648,1738603851767,-1094.85,0.0001726,2]
[351499649,1738603851777,-2350.89,0.0001726,2]
[351499650,1738603851787,-5392.29879712,0.0001726,2]
[351499651,1738603851799,-3263.59999999,0.0001726,2]
[351499652,1738603851811,-1530.28682995,0.0001726,2]
[351499653,1738603851823,-648.48437294,0.0001726,2]
[351499654,1738603851832,-500.0,0.0001726,2]
[351499655,1738603851842,-105.1649248,0.0001726,2]
[351499660,1738603852023,-517.8250752,0.0001726,2]
[351499661,1738603852033,-553.72,0.0001726,2]
[351499662,1738603852044,-634.41,0.0001726,2]
[351499663,1738603852053,-1714.68,0.0001726,2]
[351499664,1738603852062,-500.0,0.0001726,2]
[351499665,1738603852072,-151.0,0.0001726,2]
[351499666,1738603852082,-151.0,0.0001726,2]
[351499667,1738603852091,-500.0,0.0001726,2]
[351499668,1738603852100,-1086.52,0.0001726,2]
[351499669,1738603852110,-500.0,0.0001726,2]
[351499670,1738603852120,-500.0,0.0001726,2]
[351499671,1738603852129,-565.13,0.0001726,2]
[351499672,1738603852138,-4922.91,0.0001726,2]
[351499673,1738603852148,-500.0,0.0001726,2]
[351499674,1738603852158,-500.0,0.0001726,2]
[351499675,1738603852167,-5519.73,0.0001726,2]
[351499676,1738603852176,-585.67,0.0001726,2]
[351499677,1738603852186,-500.0,0.0001726,2]
[351499678,1738603852196,-500.0,0.0001726,2]
[351499679,1738603852205,-160.62656293,0.0001726,2]
[351499680,1738603852214,-1271.01,0.0001726,2]
[351499681,1738603852224,-983.07,0.0001726,2]
[351499682,1738603852233,-585.06,0.0001726,2]
[351499683,1738603852242,-151.0,0.0001726,2]
[351499684,1738603852252,-500.0,0.0001726,2]
[351499685,1738603852261,-500.0,0.0001726,2]
[351499686,1738603852271,-1073.27,0.0001726,2]
[351499687,1738603852280,-625.96,0.0001726,2]
[351499688,1738603852294,-912.41,0.0001726,2]
[351499689,1738603852303,-500.0,0.0001726,2]
[351499690,1738603852313,-2629.62,0.0001726,2]
[351499691,1738603852323,-600.0,0.0001728,2]
[351499692,1738603852333,-700.0,0.00017342,2]
[351499693,1738603852342,-280.0,0.0001739,2]
[351499694,1738603852351,-151.0,0.00017397,2]
[351499695,1738603852360,-151.0,0.00017397,2]
[351499696,1738603852370,-500.0,0.00017397,2]
[351499697,1738603852378,-151.0,0.00017397,2]
[351499698,1738603852387,-500.0,0.00017397,2]
[351499699,1738603852397,-618.21,0.00017397,2]
[351499700,1738603852406,-500.0,0.00017397,2]
[351499701,1738603852416,-500.0,0.00017397,2]
[351499702,1738603852425,-500.0,0.00017397,2]
[351499703,1738603852434,-500.0,0.00017397,2]
[351499704,1738603852444,-500.0,0.00017397,2]
[351499705,1738603852452,-500.0,0.00017397,2]
[351499706,1738603852462,-500.0,0.00017397,2]
[351499707,1738603852471,-500.0,0.00017397,2]
[351499708,1738603852480,-500.0,0.00017397,2]
[351499709,1738603852489,-637.810151,0.00017397,2]
[351499710,1738603852498,-637.810151,0.00017397,2]
[351499711,1738603852507,-2953.08,0.00017397,2]
[351499712,1738603852516,-1352.98,0.00017397,2]
[351499713,1738603852526,-500.0,0.00017397,2]
[351499714,1738603852539,-1506.91,0.00017397,2]
[351499715,1738603852548,-1082.58078575,0.00017397,2]
[351499716,1738603852560,-724.92562941,0.00017397,2]
[351499754,1738604110058,336.7338,0.00013973,2]
[351499770,1738604847401,182.650087,0.00013699,2]
[351499772,1738604973225,332.266629,0.00013973,2]
[351499814,1738605032156,-699.59882513,0.00015463,2]
[351499815,1738605032210,-831.9630873,0.00015463,2]
[351499816,1738605032268,-500.65549359,0.00015463,2]
[351499942,1738605038027,-601.25156334,0.00015463,2]
[351499944,1738605038037,-373.849623,0.00015619,2]
[351499946,1738605038049,-251.033714,0.00015848,2]
[351499948,1738605038060,-198.30286316,0.00016338,2]
[351499950,1738605038070,-1473.57147293,0.00016338,2]
[351499952,1738605038082,-300.0,0.00016437,2]
[351499953,1738605038093,-474.13804455,0.00016438,2]
[351499955,1738605038113,-25.86195545,0.00016438,2]
[351499957,1738605038123,-500.0,0.00016438,2]
[351499959,1738605038135,-205.06742631,0.00016438,2]
[351499961,1738605038146,-500.0,0.00016438,2]
[351499964,1738605038157,-500.0,0.00016438,2]
[351499967,1738605038168,-503.16944459,0.00016438,2]
[351499970,1738605038178,-500.0,0.00016438,2]
[351499972,1738605038187,-622.74290876,0.00016438,2]
[351499975,1738605038199,-500.0,0.00016438,2]
[351499977,1738605038212,-500.0,0.00016438,2]
[351499979,1738605038224,-500.0,0.00016438,2]
[351499981,1738605038236,-500.0,0.00016438,2]
[351499983,1738605038248,-500.0,0.00016438,2]
[351499985,1738605038259,-500.0,0.00016438,2]
[351499987,1738605038273,-500.0,0.00016438,2]
[351499989,1738605038283,-360.81873424,0.00016438,2]
[351499990,1738605038293,-500.0,0.00016438,2]
[351499993,1738605038303,-500.0,0.00016438,2]